[Event "*** Titled Tuesday 3|2 Blitz"]
[Site "Chess.com"]
[Date "2015.04.07"]
[Round "2"]
[White "guillead1"]
[Black "GeorgMeier"]
[Result "0-1"]
[WhiteElo "2389"]
[BlackElo "2724"]
[TimeControl "180+2"]
[EndTime "11:23:15 PDT"]
[Termination "GeorgMeier won by resignation"]

1. d4 {[%clk 0:03:01.9]} 1... e6 {[%clk 0:02:23.4]} 2. c4 {[%clk 0:03:02.8]}
2... Nf6 {[%clk 0:02:24.5]} 3. Nf3 {[%clk 0:03:04]} 3... d5 {[%clk 0:02:25.9]}
4. g3 {[%clk 0:03:05]} 4... Bb4+ {[%clk 0:02:26.2]} 5. Bd2 {[%clk 0:03:05.3]}
5... Be7 {[%clk 0:02:27.6]} 6. Bg2 {[%clk 0:03:06.8]} 6... O-O {[%clk
0:02:29.2]} 7. O-O {[%clk 0:03:08]} 7... c6 {[%clk 0:02:30.4]} 8. Qc2 {[%clk
0:03:08.7]} 8... Nbd7 {[%clk 0:02:31.3]} 9. Rd1 {[%clk 0:03:09.7]} 9... b6
{[%clk 0:02:32.1]} 10. b3 {[%clk 0:03:09.9]} 10... Bb7 {[%clk 0:02:32.2]} 11.
Bf4 {[%clk 0:03:10.8]} 11... c5 {[%clk 0:02:32.8]} 12. dxc5 {[%clk 0:03:07.1]}
12... Bxc5 {[%clk 0:02:31.8]} 13. Nc3 {[%clk 0:03:07.3]} 13... Rc8 {[%clk
0:02:32.3]} 14. Ne5 {[%clk 0:02:57.1]} 14... Nxe5 {[%clk 0:02:28.8]} 15. Bxe5
{[%clk 0:02:56]} 15... Bxf2+ {[%clk 0:02:29.1]} 16. Kh1 {[%clk 0:02:56.5]} 16...
Ng4 {[%clk 0:02:28.1]} 17. Bf4 {[%clk 0:02:53.9]} 17... Bc5 {[%clk 0:02:20.7]}
18. Ne4 {[%clk 0:02:53.2]} 18... Qe7 {[%clk 0:02:16.6]} 19. Nxc5 {[%clk
0:02:51.5]} 19... Qxc5 {[%clk 0:02:17.3]} 20. e3 {[%clk 0:02:25.4]} 20... Nxe3
{[%clk 0:02:01.1]} 21. Bxe3 {[%clk 0:02:25.5]} 21... Qxe3 {[%clk 0:02:03]} 22.
Qb2 {[%clk 0:02:25.3]} 22... Rfd8 {[%clk 0:02:00.4]} 23. Rd4 {[%clk 0:02:21.4]}
23... e5 {[%clk 0:01:56.9]} 24. Rd2 {[%clk 0:02:19.8]} 24... e4 {[%clk
0:01:49.6]} 25. Rad1 {[%clk 0:02:18.5]} 25... d4 {[%clk 0:01:19.5]} 26. Rxd4
{[%clk 0:02:17.4]} 26... Rxd4 {[%clk 0:01:19.9]} 27. Qxd4 {[%clk 0:02:18.7]}
27... Qxd4 {[%clk 0:01:20.8]} 28. Rxd4 {[%clk 0:02:20.6]} 28... f5 {[%clk
0:01:09.2]} 29. Kg1 {[%clk 0:02:20.4]} 29... Rc7 {[%clk 0:01:09]} 30. Kf2 {[%clk
0:02:21.2]} 30... Kf7 {[%clk 0:01:10.2]} 31. Ke3 {[%clk 0:02:21.6]} 31... Kf6
{[%clk 0:01:11.7]} 32. h4 {[%clk 0:02:17.5]} 32... g6 {[%clk 0:01:10.1]} 33. Kf4
{[%clk 0:02:12.5]} 33... Ke6 {[%clk 0:01:11]} 34. g4 {[%clk 0:02:08.5]} 34...
Rf7 {[%clk 0:01:07.4]} 35. g5 {[%clk 0:01:52.8]} 35... Rd7 {[%clk 0:01:05.5]}
36. Rxd7 {[%clk 0:01:47.5]} 36... Kxd7 {[%clk 0:01:07.4]} 37. Bf1 {[%clk
0:01:48.4]} 37... Kd6 {[%clk 0:01:08.1]} 38. b4 {[%clk 0:01:49.4]} 38... Bc8
{[%clk 0:01:08.3]} 39. a3 {[%clk 0:01:49.6]} 39... Be6 {[%clk 0:01:09.2]} 40.
Be2 {[%clk 0:01:50.7]} 40... Bf7 {[%clk 0:01:09.3]} 41. Bf1 {[%clk 0:01:51.7]}
41... Be8 {[%clk 0:01:09.4]} 42. Be2 {[%clk 0:01:52.6]} 42... Ba4 {[%clk
0:01:09.6]} 43. h5 {[%clk 0:01:49.5]} 43... Bc2 {[%clk 0:01:03.1]} 44. hxg6
{[%clk 0:01:49.5]} 44... hxg6 {[%clk 0:01:05]} 45. Bf1 {[%clk 0:01:25.5]} 45...
Bd1 {[%clk 0:01:05.6]} 46. Bh3 {[%clk 0:01:20.5]} 46... Be2 {[%clk 0:01:05.9]}
47. Bxf5 {[%clk 0:01:13.8]} 47... gxf5 {[%clk 0:01:07.8]} 48. Kxf5 {[%clk
0:01:15.7]} 48... Bxc4 {[%clk 0:00:55.4]} 49. Kxe4 {[%clk 0:01:16.8]} 49... Bb3
{[%clk 0:00:49.4]} 50. Kd4 {[%clk 0:01:12.9]} 50... Bc2 {[%clk 0:00:47.2]} 51.
Kc3 {[%clk 0:01:09.6]} 51... Bg6 {[%clk 0:00:48]} 52. Kd4 {[%clk 0:01:07.4]}
52... Be8 {[%clk 0:00:45.7]} 53. Kc4 {[%clk 0:01:06.7]} 53... a6 {[%clk
0:00:42.4]} 54. Kd4 {[%clk 0:01:04.7]} 54... Bf7 {[%clk 0:00:43.5]} 55. a4
{[%clk 0:01:02.5]} 55... Be8 {[%clk 0:00:42.6]} 56. a5 {[%clk 0:01:03.4]} 56...
b5 {[%clk 0:00:43.5]} 57. Ke4 {[%clk 0:01:02.5]} 57... Bh5 {[%clk 0:00:43.8]}
58. Kd4 {[%clk 0:01:00.5]} 58... Bg6 {[%clk 0:00:45]} 59. Ke3 {[%clk 0:00:55.7]}
59... Kd5 {[%clk 0:00:46.9]} 60. Kf4 {[%clk 0:00:56.9]} 60... Kc4 {[%clk
0:00:47.6]} 61. Ke5 {[%clk 0:00:57.8]} 61... Kxb4 {[%clk 0:00:49]} 62. Kf6
{[%clk 0:00:58.8]} 62... Bh5 {[%clk 0:00:50.6]} 63. Kg7 {[%clk 0:00:58.2]} 63...
Kxa5 {[%clk 0:00:51.4]} 64. Kh6 {[%clk 0:00:59.9]} 64... Be8 {[%clk 0:00:52.5]}
65. Kh7 {[%clk 0:01:00.3]} 65... b4 {[%clk 0:00:53.3]} 66. g6 {[%clk 0:01:01.7]}
66... Bxg6+ {[%clk 0:00:54.4]} 67. Kxg6 {[%clk 0:01:03.6]} 67... b3 {[%clk
0:00:56.3]} 0-1

[Event "*** Titled Tuesday 3|2 Blitz"]
[Site "Chess.com"]
[Date "2015.04.07"]
[Round "2"]
[White "jefferyx"]
[Black "SCIM"]
[Result "1-0"]
[WhiteElo "2087"]
[BlackElo "2040"]
[TimeControl "180+2"]
[EndTime "11:23:21 PDT"]
[Termination "jefferyx won by resignation"]

1. b4 {[%clk 0:03:01.9]} 1... d5 {[%clk 0:02:54.1]} 2. Bb2 {[%clk 0:03:02.2]}
2... Nf6 {[%clk 0:02:54.9]} 3. e3 {[%clk 0:03:02.2]} 3... c6 {[%clk 0:02:53]} 4.
a3 {[%clk 0:03:02.6]} 4... Bf5 {[%clk 0:02:51.5]} 5. h3 {[%clk 0:03:03]} 5... h6
{[%clk 0:02:51.1]} 6. Nf3 {[%clk 0:03:03.7]} 6... Nbd7 {[%clk 0:02:50.8]} 7. d3
{[%clk 0:03:05.2]} 7... e6 {[%clk 0:02:50.7]} 8. g4 {[%clk 0:03:06.4]} 8... Bh7
{[%clk 0:02:48.9]} 9. Rg1 {[%clk 0:03:08]} 9... Bd6 {[%clk 0:02:43.3]} 10. g5
{[%clk 0:03:09.2]} 10... hxg5 {[%clk 0:02:43.5]} 11. Nxg5 {[%clk 0:03:11.1]}
11... Qe7 {[%clk 0:02:34.2]} 12. Nd2 {[%clk 0:03:11]} 12... Bg6 {[%clk
0:02:23.8]} 13. Qf3 {[%clk 0:03:09.5]} 13... e5 {[%clk 0:02:15.6]} 14. Qg2
{[%clk 0:03:08.9]} 14... O-O-O {[%clk 0:02:12.6]} 15. Be2 {[%clk 0:03:09]} 15...
Kb8 {[%clk 0:02:10.3]} 16. Nb3 {[%clk 0:02:59.7]} 16... Rh4 {[%clk 0:02:02]} 17.
Nf3 {[%clk 0:02:59.9]} 17... Rh6 {[%clk 0:01:58]} 18. O-O-O {[%clk 0:02:57.3]}
18... Rdh8 {[%clk 0:01:57.6]} 19. Rh1 {[%clk 0:02:58.7]} 19... Nb6 {[%clk
0:01:52.1]} 20. Nc5 {[%clk 0:02:57.5]} 20... Nfd7 {[%clk 0:01:47.8]} 21. Nxd7+
{[%clk 0:02:49]} 21... Nxd7 {[%clk 0:01:47.8]} 22. Rdg1 {[%clk 0:02:47.3]} 22...
a5 {[%clk 0:01:33]} 23. Qg4 {[%clk 0:02:22.9]} 23... axb4 {[%clk 0:01:27.9]} 24.
axb4 {[%clk 0:02:24.8]} 24... Bxb4 {[%clk 0:01:22.9]} 25. Nxe5 {[%clk
0:02:25.6]} 25... Nxe5 {[%clk 0:01:16.3]} 26. Bxe5+ {[%clk 0:02:27.5]} 26...
Qxe5 {[%clk 0:01:03.1]} 27. Qxb4 {[%clk 0:02:28.8]} 27... Rxh3 {[%clk
0:00:59.3]} 28. Rxh3 {[%clk 0:02:30.7]} 28... Rxh3 {[%clk 0:00:59.4]} 29. Kd2
{[%clk 0:02:31.6]} 29... Rh2 {[%clk 0:00:50.3]} 30. Rb1 {[%clk 0:02:32.1]} 30...
Qc7 {[%clk 0:00:45.4]} 31. Qf8+ {[%clk 0:02:31.7]} 31... Qc8 {[%clk 0:00:42.7]}
32. Qd6+ {[%clk 0:02:32.8]} 32... Qc7 {[%clk 0:00:43]} 33. Qf8+ {[%clk
0:02:34.1]} 33... Qc8 {[%clk 0:00:44]} 34. Qxg7 {[%clk 0:02:34.5]} 34... Rxf2
{[%clk 0:00:42.8]} 35. Ra1 {[%clk 0:02:35.4]} 35... Qe6 {[%clk 0:00:35]} 36.
Qh8+ {[%clk 0:02:22.1]} 36... Kc7 {[%clk 0:00:34.5]} 37. Ra8 {[%clk 0:02:22.8]}
37... Qe7 {[%clk 0:00:19.2]} 38. Qb8+ {[%clk 0:02:19.2]} 38... Kb6 {[%clk
0:00:19.9]} 39. Qa7+ {[%clk 0:02:06.3]} 39... Kc7 {[%clk 0:00:20.7]} 40. Rb8
{[%clk 0:02:04.5]} 40... Qb4+ {[%clk 0:00:20.2]} 41. Kd1 {[%clk 0:02:03.1]}
41... Qb1+ {[%clk 0:00:21.1]} 42. Kd2 {[%clk 0:02:04.7]} 42... Qb4+ {[%clk
0:00:21.7]} 43. Kd1 {[%clk 0:01:49.5]} 43... Bh5 {[%clk 0:00:19.7]} 44. Rxb7+
{[%clk 0:01:15.7]} 44... Qxb7 {[%clk 0:00:20.4]} 45. Qxb7+ {[%clk 0:01:17.6]}
45... Kxb7 {[%clk 0:00:21.4]} 46. Bxh5 {[%clk 0:01:19.5]} 46... Rf6 {[%clk
0:00:22.4]} 47. Kd2 {[%clk 0:01:19.6]} 47... Kc7 {[%clk 0:00:23.9]} 48. d4
{[%clk 0:01:17.6]} 48... Kd6 {[%clk 0:00:25.5]} 49. Kd3 {[%clk 0:01:19.1]} 49...
Rf5 {[%clk 0:00:26.6]} 50. Bg4 {[%clk 0:01:18.1]} 50... Rf2 {[%clk 0:00:28.2]}
51. c4 {[%clk 0:01:18.8]} 51... f6 {[%clk 0:00:28.6]} 52. cxd5 {[%clk
0:01:19.8]} 52... cxd5 {[%clk 0:00:29.9]} 53. Bd1 {[%clk 0:01:17.9]} 53... Ra2
{[%clk 0:00:31]} 54. Bh5 {[%clk 0:01:18.4]} 54... Ra3+ {[%clk 0:00:32]} 55. Ke2
{[%clk 0:01:19.7]} 55... Ke6 {[%clk 0:00:32.6]} 56. Kf3 {[%clk 0:01:19.9]} 56...
Kf5 {[%clk 0:00:33.6]} 57. Bg4+ {[%clk 0:01:21]} 57... Kg5 {[%clk 0:00:32.6]}
58. Be6 {[%clk 0:01:22.9]} 58... Ra5 {[%clk 0:00:33]} 59. Kg3 {[%clk 0:01:22.9]}
59... f5 {[%clk 0:00:33.4]} 60. Kf3 {[%clk 0:01:24.4]} 60... Kf6 {[%clk
0:00:33.7]} 61. Bg8 {[%clk 0:01:25.3]} 61... Kg5 {[%clk 0:00:35.3]} 62. Be6
{[%clk 0:01:26.1]} 62... Rb5 {[%clk 0:00:36.5]} 63. Bg8 {[%clk 0:01:26.9]} 63...
Ra5 {[%clk 0:00:34.3]} 64. Be6 {[%clk 0:01:22.8]} 64... Ra3 {[%clk 0:00:35]} 65.
Kf2 {[%clk 0:01:24.5]} 65... Ra2+ {[%clk 0:00:31.9]} 66. Kf3 {[%clk 0:01:25.6]}
66... Ra3 {[%clk 0:00:32.8]} 67. Kf2 {[%clk 0:01:26.8]} 67... f4 {[%clk
0:00:27.1]} 68. exf4+ {[%clk 0:01:26.8]} 68... Kxf4 {[%clk 0:00:28.3]} 69. Bxd5
{[%clk 0:01:28.3]} 69... Ra2+ {[%clk 0:00:29.6]} 70. Bxa2 {[%clk 0:01:29]} 1-0

[Event "*** Titled Tuesday 3|2 Blitz"]
[Site "Chess.com"]
[Date "2015.04.07"]
[Round "2"]
[White "iFrancisco"]
[Black "gumersindo"]
[Result "1-0"]
[WhiteElo "2220"]
[BlackElo "2123"]
[TimeControl "180+2"]
[EndTime "11:23:32 PDT"]
[Termination "iFrancisco won by checkmate"]

1. e4 {[%clk 0:03:01.9]} 1... e5 {[%clk 0:02:59.6]} 2. Nf3 {[%clk 0:03:02.7]}
2... Nc6 {[%clk 0:02:59.9]} 3. Bb5 {[%clk 0:03:03.5]} 3... a6 {[%clk 0:02:59.9]}
4. Ba4 {[%clk 0:03:04.9]} 4... Nf6 {[%clk 0:03:00.3]} 5. O-O {[%clk 0:03:06]}
5... Be7 {[%clk 0:03:00.7]} 6. Re1 {[%clk 0:03:04.5]} 6... b5 {[%clk 0:02:59.9]}
7. Bb3 {[%clk 0:03:05.8]} 7... d6 {[%clk 0:03:01.4]} 8. c3 {[%clk 0:03:07.1]}
8... O-O {[%clk 0:03:00.7]} 9. h3 {[%clk 0:03:08.2]} 9... Na5 {[%clk 0:03:01.5]}
10. Bc2 {[%clk 0:03:09.2]} 10... c5 {[%clk 0:03:03]} 11. d4 {[%clk 0:03:10.5]}
11... Qc7 {[%clk 0:03:04.5]} 12. Nbd2 {[%clk 0:03:11.5]} 12... Nc6 {[%clk
0:03:03.8]} 13. d5 {[%clk 0:03:10.4]} 13... Nb8 {[%clk 0:02:57.4]} 14. Nf1
{[%clk 0:03:10.7]} 14... Nbd7 {[%clk 0:02:58.2]} 15. Ng3 {[%clk 0:03:06.9]}
15... Re8 {[%clk 0:02:58.1]} 16. Nh2 {[%clk 0:02:56.1]} 16... c4 {[%clk
0:02:53]} 17. Kh1 {[%clk 0:02:49.4]} 17... Bf8 {[%clk 0:02:47.8]} 18. Ng4 {[%clk
0:02:39.9]} 18... Nxg4 {[%clk 0:02:46.8]} 19. hxg4 {[%clk 0:02:40.2]} 19... Nc5
{[%clk 0:02:40.6]} 20. Be3 {[%clk 0:02:34.3]} 20... g6 {[%clk 0:02:31.4]} 21.
Qd2 {[%clk 0:02:24.5]} 21... Bxg4 {[%clk 0:02:29.7]} 22. f3 {[%clk 0:02:22.9]}
22... Bd7 {[%clk 0:02:29.5]} 23. Kg1 {[%clk 0:02:21.4]} 23... Be7 {[%clk
0:02:22.7]} 24. Bg5 {[%clk 0:02:17.9]} 24... Qd8 {[%clk 0:02:21.1]} 25. Be3
{[%clk 0:02:17.1]} 25... Rc8 {[%clk 0:02:21.2]} 26. Nf1 {[%clk 0:02:13.9]} 26...
f5 {[%clk 0:02:14.4]} 27. exf5 {[%clk 0:02:10.3]} 27... gxf5 {[%clk 0:02:12.9]}
28. Re2 {[%clk 0:01:55]} 28... Bf6 {[%clk 0:02:12.6]} 29. Rae1 {[%clk
0:01:50.9]} 29... Kh8 {[%clk 0:02:12.3]} 30. g3 {[%clk 0:01:48.1]} 30... Rg8
{[%clk 0:02:11.6]} 31. Rg2 {[%clk 0:01:42.9]} 31... Qf8 {[%clk 0:02:07.5]} 32.
Bf2 {[%clk 0:01:37.2]} 32... Bg5 {[%clk 0:01:59.9]} 33. Qe2 {[%clk 0:01:28.3]}
33... f4 {[%clk 0:01:51.7]} 34. g4 {[%clk 0:01:18.8]} 34... Qf6 {[%clk
0:01:36.9]} 35. Nd2 {[%clk 0:01:18.8]} 35... Bh4 {[%clk 0:01:30.6]} 36. Ne4
{[%clk 0:01:11.8]} 36... Nxe4 {[%clk 0:01:25.8]} 37. Qxe4 {[%clk 0:01:13.7]}
37... Bxf2+ {[%clk 0:01:25.4]} 38. Kxf2 {[%clk 0:01:05.2]} 38... Rg7 {[%clk
0:01:26]} 39. Rh1 {[%clk 0:01:05.8]} 39... Kg8 {[%clk 0:00:57.6]} 40. Rgh2
{[%clk 0:01:01.3]} 40... Rc7 {[%clk 0:00:53.1]} 41. Rxh7 {[%clk 0:01:01]} 41...
Bxg4 {[%clk 0:00:48.3]} 42. Rh8+ {[%clk 0:00:59.3]} 42... Kf7 {[%clk 0:00:48]}
43. fxg4 {[%clk 0:01:00.5]} 43... Rxg4 {[%clk 0:00:42]} 44. Qf5 {[%clk
0:00:41.8]} 44... Qxf5 {[%clk 0:00:39.4]} 45. Bxf5 {[%clk 0:00:43.7]} 45... Rg7
{[%clk 0:00:40.8]} 46. Be6+ {[%clk 0:00:39.6]} 46... Kf6 {[%clk 0:00:41.6]} 47.
R1h6+ {[%clk 0:00:39.9]} 47... Kg5 {[%clk 0:00:41.9]} 48. Rh5+ {[%clk
0:00:38.4]} 48... Kf6 {[%clk 0:00:42.7]} 49. Rf8+ {[%clk 0:00:33.4]} 49... Ke7
{[%clk 0:00:42.9]} 50. Rhh8 {[%clk 0:00:34.2]} 50... Ra7 {[%clk 0:00:38.1]} 51.
Rfg8 {[%clk 0:00:27.2]} 51... Kf6 {[%clk 0:00:37.2]} 52. Rf8+ {[%clk 0:00:28.3]}
52... Kg5 {[%clk 0:00:11.8]} 53. Rf5+ {[%clk 0:00:26.3]} 53... Kg6 {[%clk
0:00:09.4]} 54. Rfh5 {[%clk 0:00:26.2]} 54... a5 {[%clk 0:00:04.9]} 55. R8h6#
{[%clk 0:00:26.7]} 1-0

[Event "*** Titled Tuesday 3|2 Blitz"]
[Site "Chess.com"]
[Date "2015.04.07"]
[Round "2"]
[White "jcibarra"]
[Black "1stSecond"]
[Result "0-1"]
[WhiteElo "2527"]
[BlackElo "2387"]
[TimeControl "180+2"]
[EndTime "11:24:29 PDT"]
[Termination "1stSecond won by checkmate"]

1. e4 {[%clk 0:03:01.9]} 1... e5 {[%clk 0:03:00.7]} 2. Nf3 {[%clk 0:03:02.8]}
2... Nc6 {[%clk 0:03:02.2]} 3. Bb5 {[%clk 0:03:03.6]} 3... a6 {[%clk 0:03:03.6]}
4. Bxc6 {[%clk 0:03:05]} 4... dxc6 {[%clk 0:03:04.2]} 5. O-O {[%clk 0:03:06.9]}
5... Qe7 {[%clk 0:03:05.6]} 6. d4 {[%clk 0:02:58.3]} 6... exd4 {[%clk
0:03:06.5]} 7. Nxd4 {[%clk 0:02:58.2]} 7... g6 {[%clk 0:03:06.1]} 8. Nc3 {[%clk
0:02:50.2]} 8... Bg7 {[%clk 0:03:06.5]} 9. e5 {[%clk 0:02:44.5]} 9... Nh6 {[%clk
0:02:59.7]} 10. Re1 {[%clk 0:02:42.1]} 10... O-O {[%clk 0:02:59.2]} 11. Nf3
{[%clk 0:02:37.9]} 11... Rd8 {[%clk 0:02:58.7]} 12. Qe2 {[%clk 0:02:25.1]} 12...
Re8 {[%clk 0:02:45]} 13. Bg5 {[%clk 0:02:20.6]} 13... Qf8 {[%clk 0:02:45.2]} 14.
Qc4 {[%clk 0:02:10]} 14... Nf5 {[%clk 0:02:40.7]} 15. Ne4 {[%clk 0:02:02]} 15...
Be6 {[%clk 0:02:37.6]} 16. Qc3 {[%clk 0:02:01.3]} 16... Kh8 {[%clk 0:02:36.6]}
17. Bf6 {[%clk 0:01:50.9]} 17... h6 {[%clk 0:02:32.4]} 18. g4 {[%clk 0:01:43.2]}
18... Ne7 {[%clk 0:02:29.7]} 19. Bxg7+ {[%clk 0:01:44]} 19... Kxg7 {[%clk
0:02:27.1]} 20. Nf6 {[%clk 0:01:45.9]} 20... Red8 {[%clk 0:02:27]} 21. Nd4
{[%clk 0:01:43.6]} 21... Nd5 {[%clk 0:02:26.8]} 22. Qg3 {[%clk 0:01:37.4]} 22...
Kh8 {[%clk 0:02:03.2]} 23. c3 {[%clk 0:01:29.3]} 23... c5 {[%clk 0:02:00.7]} 24.
Nf3 {[%clk 0:01:24.2]} 24... Qg7 {[%clk 0:01:53.4]} 25. g5 {[%clk 0:01:25.6]}
25... h5 {[%clk 0:01:51.7]} 26. Nh4 {[%clk 0:01:16.9]} 26... Qf8 {[%clk
0:01:47.6]} 27. f4 {[%clk 0:01:16]} 27... Ne7 {[%clk 0:01:37.3]} 28. Qf3 {[%clk
0:01:04.3]} 28... b6 {[%clk 0:01:31.1]} 29. f5 {[%clk 0:00:58.3]} 29... Nxf5
{[%clk 0:01:30.9]} 30. Nxf5 {[%clk 0:00:59]} 30... Bxf5 {[%clk 0:01:32.3]} 31.
Nxh5 {[%clk 0:00:51.5]} 31... Qe7 {[%clk 0:01:32.6]} 32. Nf6 {[%clk 0:00:50.3]}
32... Kg7 {[%clk 0:01:33.4]} 33. h4 {[%clk 0:00:44.7]} 33... Rh8 {[%clk
0:01:34]} 34. h5 {[%clk 0:00:45.3]} 34... Rhd8 {[%clk 0:01:25.8]} 35. Re2 {[%clk
0:00:37.4]} 35... Qe6 {[%clk 0:01:19]} 36. Rae1 {[%clk 0:00:36.5]} 36... c6
{[%clk 0:01:15.3]} 37. Rh2 {[%clk 0:00:33]} 37... Rd3 {[%clk 0:01:12.2]} 38. Qf2
{[%clk 0:00:28.5]} 38... Bh3 {[%clk 0:01:02.4]} 39. Qh4 {[%clk 0:00:18.4]} 39...
Rh8 {[%clk 0:00:35.7]} 40. h6+ {[%clk 0:00:19.6]} 40... Kf8 {[%clk 0:00:36.8]}
41. Rf2 {[%clk 0:00:20.3]} 41... Ke7 {[%clk 0:00:35.1]} 42. Ne4 {[%clk
0:00:17.4]} 42... Bf5 {[%clk 0:00:36]} 43. Nd6 {[%clk 0:00:18.3]} 43... Kd7
{[%clk 0:00:34.3]} 44. Qf4 {[%clk 0:00:18.5]} 44... Rxd6 {[%clk 0:00:34.5]} 45.
Kh2 {[%clk 0:00:08.2]} 45... Rd3 {[%clk 0:00:31.8]} 46. Rd2 {[%clk 0:00:09.8]}
46... Rxd2+ {[%clk 0:00:32]} 47. Qxd2+ {[%clk 0:00:11.7]} 47... Kc7 {[%clk
0:00:33.3]} 48. Qf4 {[%clk 0:00:11.2]} 48... Rd8 {[%clk 0:00:32.2]} 49. Re2
{[%clk 0:00:11.7]} 49... b5 {[%clk 0:00:32.8]} 50. a3 {[%clk 0:00:12.2]} 50...
Rd3 {[%clk 0:00:33.2]} 51. Kg1 {[%clk 0:00:12]} 51... Kb6 {[%clk 0:00:32.1]} 52.
b4 {[%clk 0:00:12.4]} 52... Qd5 {[%clk 0:00:32]} 53. e6 {[%clk 0:00:12]} 53...
Rd1+ {[%clk 0:00:26.9]} 54. Kf2 {[%clk 0:00:13.4]} 54... cxb4 {[%clk 0:00:20.1]}
55. axb4 {[%clk 0:00:14.6]} 55... Kb7 {[%clk 0:00:18.5]} 56. e7 {[%clk
0:00:09.3]} 56... Qh1 {[%clk 0:00:19.9]} 57. Qb8+ {[%clk 0:00:06.2]} 57... Kxb8
{[%clk 0:00:20.1]} 58. e8=Q+ {[%clk 0:00:05.9]} 58... Bc8 {[%clk 0:00:21.6]} 59.
Qe5+ {[%clk 0:00:06.9]} 59... Ka8 {[%clk 0:00:22.7]} 60. Qe4 {[%clk 0:00:07.9]}
60... Qg1+ {[%clk 0:00:22.4]} 61. Kf3 {[%clk 0:00:09.4]} 61... Rf1+ {[%clk
0:00:23.2]} 62. Rf2 {[%clk 0:00:10.6]} 62... Qxf2# {[%clk 0:00:23.4]} 0-1

[Event "*** Titled Tuesday 3|2 Blitz"]
[Site "Chess.com"]
[Date "2015.04.07"]
[Round "2"]
[White "AnthonyWirig"]
[Black "Ar4uha"]
[Result "1/2-1/2"]
[WhiteElo "2484"]
[BlackElo "2463"]
[TimeControl "180+2"]
[EndTime "11:25:00 PDT"]
[Termination "Game drawn by repetition"]

1. c4 {[%clk 0:03:01.9]} 1... Nf6 {[%clk 0:02:54.5]} 2. g3 {[%clk 0:03:02.6]}
2... e6 {[%clk 0:02:55.4]} 3. Bg2 {[%clk 0:03:03.7]} 3... d5 {[%clk 0:02:56.5]}
4. Nf3 {[%clk 0:03:04.6]} 4... dxc4 {[%clk 0:02:57.1]} 5. Qa4+ {[%clk 0:03:05]}
5... Nbd7 {[%clk 0:02:55]} 6. Qxc4 {[%clk 0:03:05.6]} 6... a6 {[%clk 0:02:56.5]}
7. Qc2 {[%clk 0:03:05.2]} 7... Be7 {[%clk 0:02:54]} 8. O-O {[%clk 0:03:06.5]}
8... O-O {[%clk 0:02:54.1]} 9. a4 {[%clk 0:03:00.8]} 9... Rb8 {[%clk 0:02:45.9]}
10. d3 {[%clk 0:02:46]} 10... Nd5 {[%clk 0:02:36.9]} 11. Bd2 {[%clk 0:02:30.5]}
11... c5 {[%clk 0:02:30.3]} 12. Nc3 {[%clk 0:02:27.2]} 12... N7f6 {[%clk
0:02:22.5]} 13. a5 {[%clk 0:02:13.6]} 13... Bd7 {[%clk 0:02:08.6]} 14. Ne5
{[%clk 0:02:12.4]} 14... Be8 {[%clk 0:02:05.5]} 15. Nxd5 {[%clk 0:02:03.3]}
15... Nxd5 {[%clk 0:02:05.1]} 16. Rfc1 {[%clk 0:01:58.8]} 16... f6 {[%clk
0:01:58.5]} 17. Nc4 {[%clk 0:01:57.4]} 17... Bc6 {[%clk 0:01:58.7]} 18. Ne3
{[%clk 0:01:54.9]} 18... Qd7 {[%clk 0:01:52.9]} 19. Nxd5 {[%clk 0:01:48.6]}
19... Bxd5 {[%clk 0:01:54.1]} 20. Be3 {[%clk 0:01:45.7]} 20... Rfc8 {[%clk
0:01:48.2]} 21. Qa4 {[%clk 0:01:42.6]} 21... Qxa4 {[%clk 0:01:27.5]} 22. Rxa4
{[%clk 0:01:44.5]} 22... Kf7 {[%clk 0:01:20.1]} 23. Bf4 {[%clk 0:01:42.3]} 23...
Ra8 {[%clk 0:01:08.5]} 24. Rc3 {[%clk 0:01:30.2]} 24... g5 {[%clk 0:00:59.2]}
25. Be3 {[%clk 0:01:28.2]} 25... Rab8 {[%clk 0:00:51.6]} 26. Ra1 {[%clk
0:01:25.9]} 26... b5 {[%clk 0:00:49.5]} 27. axb6 {[%clk 0:01:24]} 27... Rxb6
{[%clk 0:00:50.2]} 28. Bxd5 {[%clk 0:01:11.1]} 28... exd5 {[%clk 0:00:51.2]} 29.
Bc1 {[%clk 0:01:12.7]} 29... Ke6 {[%clk 0:00:49.7]} 30. Rca3 {[%clk 0:01:13.4]}
30... Rcc6 {[%clk 0:00:49.4]} 31. Ra4 {[%clk 0:01:14.1]} 31... Bd6 {[%clk
0:00:48.8]} 32. Kg2 {[%clk 0:01:12.1]} 32... Be5 {[%clk 0:00:47.7]} 33. R1a2
{[%clk 0:01:12.8]} 33... h5 {[%clk 0:00:46.8]} 34. f4 {[%clk 0:01:13.3]} 34...
gxf4 {[%clk 0:00:46.8]} 35. gxf4 {[%clk 0:01:15.2]} 35... Bd6 {[%clk 0:00:47.4]}
36. Kf3 {[%clk 0:01:12.4]} 36... f5 {[%clk 0:00:46.8]} 37. Bd2 {[%clk
0:01:08.4]} 37... Be7 {[%clk 0:00:41.8]} 38. Bc3 {[%clk 0:01:08.9]} 38... Bf6
{[%clk 0:00:39.6]} 39. Ra1 {[%clk 0:00:59.9]} 39... Kf7 {[%clk 0:00:28.9]} 40.
h3 {[%clk 0:00:55.7]} 40... Re6 {[%clk 0:00:27]} 41. Bxf6 {[%clk 0:00:53.5]}
41... Kxf6 {[%clk 0:00:28.4]} 42. R1a2 {[%clk 0:00:52.3]} 42... d4 {[%clk
0:00:29.2]} 43. Ra5 {[%clk 0:00:52.9]} 43... Rec6 {[%clk 0:00:27.9]} 44. R2a4
{[%clk 0:00:52]} 44... Ke6 {[%clk 0:00:27.3]} 45. Ra2 {[%clk 0:00:50.4]} 45...
Kd5 {[%clk 0:00:28.4]} 46. b4 {[%clk 0:00:50.9]} 46... Rxb4 {[%clk 0:00:26]} 47.
Rxa6 {[%clk 0:00:52.3]} 47... Rxa6 {[%clk 0:00:27.4]} 48. Rxa6 {[%clk
0:00:53.8]} 48... Rb1 {[%clk 0:00:27.1]} 49. Kf2 {[%clk 0:00:43.2]} 49... Rh1
{[%clk 0:00:23.1]} 50. Kg2 {[%clk 0:00:42.4]} 50... Re1 {[%clk 0:00:24.1]} 51.
Kf2 {[%clk 0:00:43.4]} 51... Rh1 {[%clk 0:00:25.3]} 52. Rf6 {[%clk 0:00:42.9]}
52... Rh2+ {[%clk 0:00:23.2]} 53. Kf1 {[%clk 0:00:38.5]} 53... Rxh3 {[%clk
0:00:24.2]} 54. Rxf5+ {[%clk 0:00:39.8]} 54... Kd6 {[%clk 0:00:24]} 55. Kf2
{[%clk 0:00:40.3]} 55... h4 {[%clk 0:00:23.8]} 56. Rh5 {[%clk 0:00:41.2]} 56...
Rh2+ {[%clk 0:00:21.9]} 57. Kf3 {[%clk 0:00:42.5]} 57... Rh3+ {[%clk 0:00:21.6]}
58. Kf2 {[%clk 0:00:44]} 58... Rh2+ {[%clk 0:00:22.9]} 59. Ke1 {[%clk
0:00:40.9]} 59... Rh1+ {[%clk 0:00:21.5]} 60. Kd2 {[%clk 0:00:42.3]} 60... h3
{[%clk 0:00:22.9]} 61. Rh6+ {[%clk 0:00:42.2]} 61... Kd5 {[%clk 0:00:22.3]} 62.
Rh5+ {[%clk 0:00:43.4]} 62... Ke6 {[%clk 0:00:23.3]} 63. Rxc5 {[%clk 0:00:43.7]}
63... h2 {[%clk 0:00:23.9]} 64. Rh5 {[%clk 0:00:45.3]} 64... Kf6 {[%clk
0:00:25]} 65. f5 {[%clk 0:00:44.9]} 65... Ke5 {[%clk 0:00:26.4]} 66. Kc2 {[%clk
0:00:34.8]} 66... Kf6 {[%clk 0:00:21]} 67. Kb2 {[%clk 0:00:31.1]} 67... Ke5
{[%clk 0:00:22]} 68. Kc2 {[%clk 0:00:32.1]} 68... Kf6 {[%clk 0:00:21.4]} 69. Kd2
{[%clk 0:00:33]} 69... Ke5 {[%clk 0:00:21.5]} 70. Kc2 {[%clk 0:00:33.4]} 70...
Kf6 {[%clk 0:00:21.8]} 71. Kb2 {[%clk 0:00:29.5]} 71... Ke5 {[%clk 0:00:22.6]}
72. Ka2 {[%clk 0:00:29.9]} 72... Kf6 {[%clk 0:00:20]} 73. Kb2 {[%clk 0:00:30.1]}
73... Ke5 {[%clk 0:00:19.6]} 74. Kc2 {[%clk 0:00:29.4]} 74... Kf6 {[%clk
0:00:20.3]} 75. Kd2 {[%clk 0:00:27.4]} 75... Ke5 {[%clk 0:00:21.7]} 76. Kc2
{[%clk 0:00:17.3]} 1/2-1/2